Cogmind - Beta 12 @@@ ROGUE MODE // 2023.10.26 @ 15:55:39 Player: monistgf Result: Destroyed by Lightning with EMDS Performance ------------- Evolutions (5) 2500 Regions Visited (10) 2000 Robots Destroyed (209) 1045 Value Destroyed (9023) 9023 Prototype IDs (11) 220 Alien Tech Used (0) 0 Bonus (739) 739 TOTAL SCORE: 15527 Bonus ------- High Alert Combat Kills 481 Follower Combat Kills 757 Network Hubs Disabled 200 Met Zhirov 300 Friendly Fire -999 Cogmind --------- Core Integrity 0/1000 Matter 141/300 Energy 8/100 System Corruption 38% Temperature Cool (6) Movement Walking (120) Location -5/Hub_04(d) Parts ------- > --- POWER (1) -------- (None) > --- PROPULSION (3) --- Armored Leg Armored Leg Armored Leg > --- UTILITY (10) ----- High-capacity Storage Unit Improved Signal Interpreter Improved Targeting Computer Advanced Targeting Computer Medium Reflective Plating Hacking Suite Advanced Hacking Suite Advanced Hacking Suite > --- WEAPON (3) ------- (None) > --- INVENTORY (20) --- Improved Medium Treads Armored Leg Advanced Heat Sink High-capacity Storage Unit Advanced Energy Well (500) Matter Compressor (0) Advanced Sensor Array Advanced Terrain Scanner Improved Weapon Cycler Layered Medium Armor Plating Force Field Mass Driver Mass Driver Powered Hammer Peak State ------------ > --- POWER ------------ Quantum Reactor > --- PROPULSION ------- Centrium Heavy Treads Enhanced Flexi-carbon Leg > --- UTILITY ---------- High-capacity Storage Unit Improved Signal Interpreter Improved Targeting Computer Advanced Targeting Computer Improved Weapon Cycler Centrium Medium Armor Plating Centrium Medium Armor Plating Advanced Shield Generator Hacking Suite Advanced Hacking Suite > --- WEAPON ----------- Gauss Rifle KE Penetrator Advanced KE Penetrator > --- INVENTORY -------- Compact Particle Reactor Carbon-fiber Leg Flexi-carbon Leg Advanced Heat Sink High-capacity Storage Unit Advanced Energy Well High-capacity Matter Pod Gravity Neutralizer Advanced Sensor Array Advanced Terrain Scanner Improved Medium Armor Plating Layered Medium Armor Plating Centrium Medium Armor Plating Remote Force Field Advanced Assault Cannon Magnetic Acceleration Cannon Long-range Missile Launcher Improved Remote Datajack Powered Hammer [Rating: 109] Favorites ----------- Power F-cell Engine Engine F-cell Engine Power Core Nuclear Core Reactor Compact Particle Reactor Propulsion Wheel Treads Centrium Heavy Treads Leg Armored Leg Wheel Wheel Hover Unit Improved Airjet Utility Hacking Suite Device Advanced Sensor Array Storage High-capacity Storage Unit Processor Advanced Targeting Computer Hackware Hacking Suite Protection Centrium Medium Armor Plating Weapon Gauss Rifle Energy Gun Medium Laser Ballistic Gun Gauss Rifle Ballistic Cannon Mass Driver Launcher Long-range Missile Launcher Impact Weapon Powered Hammer Piercing Weapon Heavy Pick Build | -11 -10 -9 -8 -7 -6 -5 -5 -5 -5 -5 ------- Run | Jun Mat Mat Mat Fac Fac Fac Ext Cet Arc Hub Slots Evolved 10 | . . 2 2 2 2 2 . . . . Power . | . . . . . . . . . . . Propulsion 1 | . . . 1 . . . . . . . Utility 8 | . . 1 1 2 2 2 . . . . Weapon 1 | . . 1 . . . . . . . . Parts Attached 304 | . 13 6 36 20 46 40 33 22 4 84 Power 24 | . 1 1 7 1 4 . 3 2 . 5 Engine 9 | . 1 1 2 . 3 . 2 . . . Core 11 | . . . 5 1 1 . 1 . . 3 Reactor 4 | . . . . . . . . 2 . 2 Propulsion 58 | . 6 2 9 3 13 2 4 3 . 16 Treads 9 | . . 1 2 . . . . 3 . 3 Leg 20 | . 3 . 2 . 4 . 1 . . 10 Wheel 28 | . 3 1 5 3 8 2 3 . . 3 Hover 1 | . . . . . 1 . . . . . Flight . | . . . . . . . . . . . Utility 147 | . 4 1 15 13 17 25 18 12 2 40 Device 85 | . 1 . 5 7 5 17 9 6 2 33 Storage 8 | . 2 . 3 . . 1 1 1 . . Processor 8 | . 1 . . . 4 1 . 2 . . Hackware 10 | . . 1 . 2 2 . 2 2 . 1 Protection 36 | . . . 7 4 6 6 6 1 . 6 Artifact . | . . . . . . . . . . . Weapon 75 | . 2 2 5 3 12 13 8 5 2 23 Energy Gun . | . . . . . . . . . . . Energy Cannon . | . . . . . . . . . . . Ballistic Gun 46 | . 2 2 5 3 9 4 6 4 1 10 Ballistic Cannon 11 | . . . . . 1 3 1 . . 6 Launcher 2 | . . . . . . . . 1 . 1 Special Weapon . | . . . . . . . . . . . Impact Weapon 15 | . . . . . 2 6 1 . 1 5 Slashing Weapon . | . . . . . . . . . . . Piercing Weapon 1 | . . . . . . . . . . 1 Special Melee Weapon . | . . . . . . . . . . . Unidentified Prototypes 11 | . . . 1 . 3 1 1 4 . 1 Parts Lost 54 | . . 1 6 2 12 3 5 1 2 22 Power 7 | . . . . 1 1 . . . . 5 Propulsion 11 | . . 1 2 . 1 . 2 . 1 4 Utility 21 | . . . 1 1 7 3 1 . . 8 Weapon 15 | . . . 3 . 3 . 2 1 1 5 Highest Loss Streak 11 | . . 1 4 1 5 2 3 1 2 11 To Critical Strikes 1 | . . . . . . . . 1 . . Average Slot Usage (%) 95 | . 93 96 99 97 91 92 99 94 94 93 Engine 3 | . 14 11 3 3 2 5 4 . . . Core 1 | . . . 5 3 2 . . . . . Reactor 1 | . . . . . . . . 4 5 4 Treads 1 | . . . 3 . . . . 8 11 1 Leg 3 | . 18 . 1 . 4 . . . . 5 Wheel 11 | . 9 21 21 20 10 11 16 2 . 3 Device 9 | . 3 11 5 7 8 10 9 7 11 12 Storage 6 | . 14 11 9 7 6 5 5 8 5 5 Processor 10 | . 4 . . . 7 17 17 17 17 17 Hackware 14 | . . 8 9 22 21 15 11 14 17 14 Protection 7 | . . . 12 7 6 5 11 6 5 5 Ballistic Gun 18 | . 19 33 26 23 19 13 16 16 14 13 Naked Turns . | . . . . . . . . . . . Heaviest Build 110 | 11 34 37 67 71 73 91 105 110 89 93 Greatest Support 110 | 20 32 32 48 38 60 40 40 110 110 103 Greatest Overweight (x) 9 | . 1 1 3 3 6 2 4 9 1 8 Average Overweight (x) 1 | . . 1 1 1 1 1 2 1 . 1 Largest Inventory Capacity 20 | 8 15 15 20 20 20 20 20 20 20 20 Average Capacity 19 | 8 11 15 18 20 20 20 20 20 20 20 Most Carried 20 | 6 14 15 20 20 20 20 20 20 20 20 Average Carried 18 | 6 10 13 18 19 19 19 19 19 20 19 Final Capacity 20 | 8 15 15 20 20 20 20 20 20 20 20 Final Carried 20 | 6 14 15 20 20 20 20 20 20 20 14 Class Distribution -------------------- 20% | Scavenger-Gunner 16% | Hacker-Tank 12% | Hacker-Gunner 10% | Hacker-Skirmisher 8% | Tank 7% | Scavenger-Tank 6% | Mutant 4% | Hacker-Assassin 3% | Commander-Skirmisher Dominant Class ---------------- Mutant | -10/Materials Gunner | -9/Materials Tank | -8/Materials Hacker-Tank | -7/Factory Hacker-Tank | -6/Factory Hacker-Skirmisher | -5/Factory Scavenger-Gunner | -5/Extension Scavenger-Gunner | -5/Cetus Scavenger-Gunner | -5/Archives Scavenger-Gunner | -5/Hub_04(d) Resources | -11 -10 -9 -8 -7 -6 -5 -5 -5 -5 -5 ----------- Run | Jun Mat Mat Mat Fac Fac Fac Ext Cet Arc Hub Matter Collected 9549 | 200 332 185 1131 646 1511 1452 943 777 20 2352 Remotely . | . . . . . . . . . . . Salvage Created 10593 | . 382 185 1610 738 1669 1200 904 992 293 2620 Parts 457 | . 20 11 76 35 73 43 37 49 8 105 Haulers Intercepted 8 | . 1 . 3 . 1 2 . . . 1 Recyclers Shooed 9 | . 1 . 1 . 4 1 . . . 2 Parts Field Recycled . | . . . . . . . . . . . Retrieved Matter . | . . . . . . . . . . . Parts Self-Destructed . | . . . . . . . . . . . Prevented . | . . . . . . . . . . . Kills | -11 -10 -9 -8 -7 -6 -5 -5 -5 -5 -5 ------- Run | Jun Mat Mat Mat Fac Fac Fac Ext Cet Arc Hub Combat Hostiles Destroyed 163 | . 9 3 24 14 23 19 11 22 4 34 Guns 150 | . 9 3 24 14 22 18 11 17 4 28 Cannons 6 | . . . . . 1 1 . . . 4 AOE 7 | . . . . . . . . 5 . 2 Classes Destroyed 15 | . 4 3 4 1 2 . 1 . . . Worker 11 | . . . 1 . 3 1 1 . . 5 Builder 5 | . . . 1 . . . 1 . . 3 Tunneler 2 | . . . 1 1 . . . . . . Hauler 8 | . 1 . 3 . 1 2 . . . 1 Recycler 6 | . . . 2 1 1 . . . . 2 Operator 3 | . . 1 1 . 1 . . . . . Watcher 8 | . 1 . . . 2 . 2 1 . 2 Swarmer 25 | . 3 . . 5 . 4 1 9 . 3 Grunt 80 | . 6 1 18 6 14 7 2 6 4 16 Brawler 3 | . . . . . 2 . . . . 1 Duelist 4 | . . 1 1 1 . . . . . 1 Sentry 19 | . . 1 5 . 1 2 6 . . 4 Hunter 8 | . . . . 2 3 1 1 . . 1 Programmer 21 | . . . . . 3 5 . 4 . 9 Behemoth 2 | . . . . . . . 1 . . 1 Cetus Guard 3 | . . . . . . . . 3 . . Thug 1 | . . . . . . . 1 . . . Best Kill Streak 16 | . 3 2 5 4 10 16 3 6 4 10 Combat Bots Only 13 | . 3 2 3 3 9 13 3 6 4 7 Max Kills in Single Turn 8 | . 1 2 2 2 2 1 1 3 2 8 Gunslinging . | . . . . . . . . . . . Exploded 3 | . . . . . . . . 3 . 2 Melee . | . . . . . . . . . . . Uniques/NPCs Destroyed . | . . . . . . . . . . . Combat | -11 -10 -9 -8 -7 -6 -5 -5 -5 -5 -5 -------- Run | Jun Mat Mat Mat Fac Fac Fac Ext Cet Arc Hub Damage Taken 13784 | . 278 274 1271 598 2229 1491 1183 570 646 5244 Core 1459 | . 44 15 114 98 174 165 89 70 103 587 Absorbed by Shields 1227 | . . . . . . . 9 215 107 896 Reduced by Siege Mode 4 | . . . . . . . . 4 . . Redirected to Shielding 32 | . . . 32 . . . . . . . Regen/Repaired (Parts) 339 | . . . 114 . 225 . . . . . Core Remaining (%) 87 | 100 82 96 79 86 79 . . . . . Volleys Fired 529 | . 34 9 85 38 104 55 49 42 5 108 Largest 3 | . 2 3 3 3 3 3 3 3 3 3 Hottest 123 | . 70 69 71 84 104 104 96 101 98 123 Shots Fired 1508 | . 68 27 250 114 313 154 147 119 15 301 Gun 1436 | . 68 27 250 114 296 144 146 116 15 260 Cannon 68 | . . . . . 17 10 1 . . 40 Launcher 4 | . . . . . . . . 3 . 1 Special . | . . . . . . . . . . . Kinetic 1477 | . 41 27 250 114 313 154 147 116 15 300 Thermal 27 | . 27 . . . . . . . . . Explosive 4 | . . . . . . . . 3 . 1 Electromagnetic . | . . . . . . . . . . . Robot Hit Streak 30 | . 10 8 16 12 21 30 21 10 5 30 Robot Miss Streak 5 | . 3 3 4 5 4 2 4 4 2 4 Penetration Max 3 | . . . . 1 1 1 1 3 1 1 Secondary Targets 17 | . . . 1 1 4 3 2 2 . 4 Max Gunslinging Chain 1 | . . . 1 1 1 1 1 1 . 1 Shots Hit Robots 1076 | . 47 18 172 67 225 125 114 76 8 224 Core Hits 449 | . 21 9 65 30 85 45 47 44 6 97 Critical Kills 14 | . . . . . 3 . 1 8 2 . Critical Parts Destroyed 28 | . . . . . 5 2 2 13 . 6 Critical Strikes 54 | . 4 . . . 9 2 6 22 2 9 Burn 4 | . 4 . . . . . . . . . Destroy 45 | . . . . . 8 1 6 22 2 6 Blast 4 | . . . . . 1 . . . . 3 Smash 1 | . . . . . . 1 . . . . Melee Attacks 26 | . . . . . 3 11 2 . 1 9 Impact 26 | . . . . . 3 11 2 . 1 9 Slashing . | . . . . . . . . . . . Piercing . | . . . . . . . . . . . Sneak Attacks 3 | . . . . . . 2 1 . . . Combat Hostiles . | . . . . . . . . . . . Follow-up Attacks . | . . . . . . . . . . . Damage Inflicted 25530 | . 541 286 2940 1400 4631 3055 2438 2304 407 7528 Guns 22281 | . 540 276 2940 1400 4360 2687 2281 1819 317 5661 Cannons 1365 | . . . . . 271 122 26 . . 946 Explosions 1402 | . . . . . . . . 485 . 917 Melee 467 | . . . . . . 246 131 . 90 . Ramming 15 | . 1 10 . . . . . . . 4 Kinetic 23382 | . 276 276 2940 1400 4631 2809 2307 1819 317 6607 Thermal 264 | . 264 . . . . . . . . . Explosive 485 | . . . . . . . . 485 . . Electromagnetic 917 | . . . . . . . . . . 917 Impact 467 | . . . . . . 246 131 . 90 . Slashing . | . . . . . . . . . . . Piercing . | . . . . . . . . . . . Highest Corruption 38 | . . 1 . . 6 3 3 7 7 38 Average Corruption 7 | . . 1 . . 4 1 3 5 7 13 Corruption Purged . | . . . . . . . . . . . Corruption Blocked . | . . . . . . . . . . . Effects 187 | . . . . . 17 16 31 28 1 94 Message Errors 44 | . . . . . 2 5 9 7 . 21 Matter Fused 37 | . . . . . 3 5 3 3 1 22 Heat Flow Errors 25 | . . . . . 5 3 3 1 . 13 Energy Discharges 20 | . . . . . . 2 3 3 . 12 Parts Rejected 2 | . . . . . 1 . . . . 1 Parts Fused 2 | . . . . . . . 1 1 . . Data Loss (minor) 26 | . . . . . 1 1 4 5 . 15 Data Loss (major) 9 | . . . . . 2 . 4 2 . 1 Misfires 7 | . . . . . 2 . 2 3 . . Alerts 2 | . . . . . 1 . . . . 1 Misdirections 1 | . . . . . . . . . . 1 Weapon Failures 12 | . . . . . . . 2 3 . 7 Overload Shots . | . . . . . . . . . . . Overflow Damage 337 | . . . . . 8 136 91 . 45 57 Projectiles 39 | . . . . . 8 . . . . 31 Explosions 26 | . . . . . . . . . . 26 Melee 272 | . . . . . . 136 91 . 45 . Knockbacks 9 | . . . . . 3 . . . 1 5 Impact 1 | . . . . . . . . . 1 . Kinetic 7 | . . . . . 3 . . . . 4 Secondary 1 | . . . . . . . . . . 1 Self-Inflicted Damage 104 | . . 5 . . . . . . . 99 Shots 1 | . . . . . . . . . . 1 Rammed 3 | . . 1 . . . . . . . 2 Targets Rammed 6 | . 1 1 . . . . . . . 4 Kicked 3 | . 1 . . . . . . . . 2 Crushed . | . . . . . . . . . . . Highest Temperature 333 | . 158 27 309 273 279 179 318 324 112 333 Average Temperature 76 | . 61 7 64 84 80 49 99 102 48 81 Received Heat Transfer 2850 | . 126 42 684 99 651 306 231 18 6 687 Effects 4 | . . . . . . . . 2 . 2 Energy Bleed 2 | . . . . . . . . 2 . . Interference 2 | . . . . . . . . . . 2 Siege Activations 4 | . . . . . . . . 1 . 3 Total Turns 32 | . . . . . . . . 6 . 26 Longest Duration 13 | . . . . . . . . 6 . 13 Robots Corrupted . | . . . . . . . . . . . Combat Hostiles . | . . . . . . . . . . . Parts Fried 8 | . . . . . . 2 . . 1 5 Impact Corruptions 11 | . . . . . . 4 3 . 4 . Robots Melted . | . . . . . . . . . . . Combat Hostiles . | . . . . . . . . . . . Parts Melted 6 | . 3 . . . . . 3 . . . Heat Transferred 1073 | . 1073 . . . . . . . . . Parts Sabotaged . | . . . . . . . . . . . Parts Stolen . | . . . . . . . . . . . Parts Stripped . | . . . . . . . . . . . Power Chain Reactions . | . . . . . . . . . . . Missiles Intercepted . | . . . . . . . . . . . Alert | -11 -10 -9 -8 -7 -6 -5 -5 -5 -5 -5 ------- Run | Jun Mat Mat Mat Fac Fac Fac Ext Cet Arc Hub Peak Influence 876 | . 168 100 338 308 479 431 406 698 357 876 Initial 234 | . . . 42 85 101 234 210 227 219 117 Average 234 | . 50 72 142 136 218 167 169 443 267 425 Maximum Alert Level 3 | . . . 1 1 2 2 2 2 1 3 Low Security (%) 49 | 100 100 100 68 79 48 59 65 . . 8 Level 1 34 | . . . 31 20 41 33 32 44 100 42 Level 2 15 | . . . . . 9 7 1 55 . 45 Level 3 . | . . . . . . . . . . 3 Level 4 . | . . . . . . . . . . . Level 5 . | . . . . . . . . . . . High Security . | . . . . . . . . . . . Max Security . | . . . . . . . . . . . Squads Dispatched 43 | . . . 5 6 6 5 3 1 . 17 Investigation 8 | . . . 1 2 . 2 1 1 . 1 Extermination 9 | . . . . . 3 2 . . . 4 Reinforcement 15 | . . . 1 2 3 1 2 . . 6 Assault . | . . . . . . . . . . . Garrison 11 | . . . 3 2 . . . . . 6 Intercept . | . . . . . . . . . . . Searches Triggered . | . . . . . . . . . . . Construction Impeded 2 | . . . . 1 . . . . . 1 Haulers Reinforced 5 | . . . . . 2 1 . . . 2 Active Scanning Responses . | . . . . . . . . . . . Cargo Convoy Interrupts . | . . . . . . . . . . . Stealth | -11 -10 -9 -8 -7 -6 -5 -5 -5 -5 -5 --------- Run | Jun Mat Mat Mat Fac Fac Fac Ext Cet Arc Hub Distress Signals 7 | . . . 2 . 1 1 . 1 . 2 Communications Jammed . | . . . . . . . . . . . Distress Signals . | . . . . . . . . . . . Times Spotted 273 | . 13 6 34 19 40 27 31 29 17 57 Peak Tracking Total 14 | . 3 2 5 4 6 14 4 6 13 6 Tactical Retreats 16 | . . . 3 1 2 3 . 3 . 4 Traps | -11 -10 -9 -8 -7 -6 -5 -5 -5 -5 -5 ------- Run | Jun Mat Mat Mat Fac Fac Fac Ext Cet Arc Hub Traps Triggered 20 | . . . 1 2 1 3 8 . . 5 Indirectly 1 | . . . . . . . . . . 1 Trap Hack Attempts . | . . . . . . . . . . . Triggered . | . . . . . . . . . . . Disarmed . | . . . . . . . . . . . Reprogrammed . | . . . . . . . . . . . Reused . | . . . . . . . . . . . Traps Extracted . | . . . . . . . . . . . Installed . | . . . . . . . . . . . Triggered . | . . . . . . . . . . . Machines | -11 -10 -9 -8 -7 -6 -5 -5 -5 -5 -5 ---------- Run | Jun Mat Mat Mat Fac Fac Fac Ext Cet Arc Hub Machines Disabled 29 | . . . . 1 4 . 1 5 3 15 Max in Single Turn 9 | . . . . 1 1 . 1 1 1 9 Garrison Access 2 | . . . . 1 . . . . . 1 Network Hub 1 | . . . . . . . . . . 1 Machines Repaired . | . . . . . . . . . . . Machines Sabotaged . | . . . . . . . . . . . Overloaded Fab Kills . | . . . . . . . . . . . Hacking | -11 -10 -9 -8 -7 -6 -5 -5 -5 -5 -5 --------- Run | Jun Mat Mat Mat Fac Fac Fac Ext Cet Arc Hub Machines Accessed 51 | . 5 1 8 7 6 4 9 1 . 10 Terminals 42 | . 5 1 6 5 5 2 9 1 . 8 Fabricators 2 | . . . . . . 2 . . . . Repair Stations 2 | . . . 1 . 1 . . . . . Recycling Units . | . . . . . . . . . . . Scanalyzers 2 | . . . 1 1 . . . . . . Garrison Access 3 | . . . . 1 . . . . . 2 Total Hacks 140 | . 11 4 31 14 21 14 18 3 . 24 Successful 73 | . 5 1 19 5 15 9 7 1 . 11 Failed 65 | . 5 3 11 9 6 5 11 2 . 13 Catastrophic 10 | . . . 2 3 . 1 2 1 . 1 Database Lockouts 2 | . 1 . 1 . . . . . . . Manual 63 | . 8 2 19 11 9 8 2 1 . 3 Terminals 122 | . 11 4 25 11 19 10 18 3 . 21 Fabricators 4 | . . . . . . 4 . . . . Repair Stations 6 | . . . 4 . 2 . . . . . Recycling Units . | . . . . . . . . . . . Scanalyzers 4 | . . . 2 2 . . . . . . Garrison Access 4 | . . . . 1 . . . . . 3 Terminal Hacks 45 | . 3 1 10 . 9 5 7 1 . 9 Record 1 | . . . . . . 1 . . . . Part Schematic 3 | . . . . . 3 . . . . . Robot Analysis 4 | . 1 . 3 . . . . . . . Open Door 8 | . . . . . . . 7 1 . . Level Access Points 1 | . . . . . . . . . . 1 Branch Access Points 4 | . . 1 2 . . 1 . . . . Alert Level 9 | . . . 3 . 2 1 . . . 3 Unreport Threat 4 | . 1 . 1 . . . . . . 2 Locate Traps 4 | . 1 . . . 1 1 . . . 1 Recall Reinforcements 1 | . . . . . . . . . . 1 Registered Components 1 | . . . . . 1 . . . . . Zone Layout 5 | . . . 1 . 2 1 . . . 1 Fabricator Hacks 2 | . . . . . . 2 . . . . Load Schematic 1 | . . . . . . 1 . . . . Build 1 | . . . . . . 1 . . . . Repair Station Hacks 6 | . . . 4 . 2 . . . . . Scan Component 3 | . . . 2 . 1 . . . . . Repair 3 | . . . 2 . 1 . . . . . Recycling Unit Hacks . | . . . . . . . . . . . Scanalyzer 4 | . . . 2 2 . . . . . . Insert Component 2 | . . . 1 1 . . . . . . Analyze 2 | . . . 1 1 . . . . . . Garrison Access Hacks 2 | . . . . 1 . . . . . 1 Seal Access 2 | . . . . 1 . . . . . 1 Unauthorized Hacks 14 | . 2 . 3 2 4 2 . . . 1 Terminals 13 | . 2 . 3 2 4 2 . . . . Assimilate 3 | . 1 . . 1 1 . . . . . Botnet 6 | . . . 2 1 2 1 . . . . Operators 4 | . 1 . 1 . 1 1 . . . . Fabricators . | . . . . . . . . . . . Repair Stations . | . . . . . . . . . . . Recycling Units . | . . . . . . . . . . . Scanalyzers . | . . . . . . . . . . . Garrison Access 1 | . . . . . . . . . . 1 Reprogram 1 | . . . . . . . . . . 1 Data Cores Recovered 2 | . . 1 1 . . . . . . . Used . | . . . . . . . . . . . Hacking Detections 43 | . 4 1 8 5 6 4 5 1 . 9 Full Trace Events 5 | . . . . 2 . 2 . 1 . . Feedback Events 1 | . . . . . . 1 . . . . Corruption 1 | . . . . . . 1 . . . . Feedback Blocked . | . . . . . . . . . . . Robot Schematics Acquired . | . . . . . . . . . . . Robots Built . | . . . . . . . . . . . Authchips . | . . . . . . . . . . . Time . | . . . . . . . . . . . Total Robot Build Rating . | . . . . . . . . . . . Part Schematics Acquired 5 | . . . 1 1 3 . . . . . Parts Built 2 | . . . . . . 2 . . . . Authchips . | . . . . . . . . . . . Time 31 | . . . . . . 31 . . . . Total Part Build Rating 4 | . . . . . . 4 . . . . Parts Repaired 3 | . . . 2 . 1 . . . . . Time 80 | . . . 58 . 22 . . . . . Parts Recycled . | . . . . . . . . . . . Recycled Matter . | . . . . . . . . . . . Retrieved Matter . | . . . . . . . . . . . Retrieved Components . | . . . . . . . . . . . Parts Scanalyzed 2 | . . . 1 1 . . . . . . Part Schematics Acquired 2 | . . . 1 1 . . . . . . Parts Damaged . | . . . . . . . . . . . Bothacking | -11 -10 -9 -8 -7 -6 -5 -5 -5 -5 -5 ------------ Run | Jun Mat Mat Mat Fac Fac Fac Ext Cet Arc Hub Used RIF Installer . | . . . . . . . . . . . Robots Hacked . | . . . . . . . . . . . Non-combat . | . . . . . . . . . . . Combat . | . . . . . . . . . . . Robot Hacks Applied . | . . . . . . . . . . . Relay Couplers Released . | . . . . . . . . . . . Fabnet Peak Effective % . | . . . . . . . . . . . Robots Rewired 11 | . . . . . . . 11 . . . Allies Hacked . | . . . . . . . . . . . Hacks Repelled . | . . . . . . . . . . . Allies | -11 -10 -9 -8 -7 -6 -5 -5 -5 -5 -5 -------- Run | Jun Mat Mat Mat Fac Fac Fac Ext Cet Arc Hub Total Allies 27 | . 1 . . 1 1 . 21 1 . 2 Largest Group 10 | . 1 1 1 1 1 . 10 7 . 2 Highest-Rated Group 379 | . 10 10 10 26 10 . 379 317 . 58 Highest-Rated Ally 159 | . 10 10 10 26 10 . 159 159 . 29 Total Orders 2 | . . . 2 . . . . . . . STAY 1 | . . . 1 . . . . . . . FOLLOW 1 | . . . 1 . . . . . . . Ally Attacks 184 | . . . . . . . 148 36 . . Total Damage 4156 | . . . . . . . 2683 1473 . . Kills 22 | . . . . . . . 18 4 . . Allies Corrupted 1 | . . . . 1 . . . . . . Allies Melted . | . . . . . . . . . . . Intel | -11 -10 -9 -8 -7 -6 -5 -5 -5 -5 -5 ------- Run | Jun Mat Mat Mat Fac Fac Fac Ext Cet Arc Hub Robot Analysis Total 4 | . 1 . 3 . . . . . . . Derelict Logs Recovered . | . . . . . . . . . . . Drone Launches . | . . . . . . . . . . . Drone Recoveries . | . . . . . . . . . . . Exploration | -11 -10 -9 -8 -7 -6 -5 -5 -5 -5 -5 ------------- Run | Jun Mat Mat Mat Fac Fac Fac Ext Cet Arc Hub Turns Passed 11730 | 3 606 300 1492 841 1948 1420 1794 816 131 2379 Spaces Moved 6351 | 3 356 201 706 566 1103 717 1189 378 65 1067 Core . | . . . . . . . . . . . Treads 565 | . . 4 . . . . . 298 65 198 Legs 463 | 3 226 . . . 121 . . . . 113 Wheels 5323 | . 130 197 706 566 982 717 1189 80 . 756 Hover . | . . . . . . . . . . . Flight . | . . . . . . . . . . . Fastest Speed 95 | 120 100 115 95 105 105 105 116 116 160 105 Average Speed 124 | 120 118 117 113 108 114 109 118 161 162 154 Slowest Speed 400 | 120 120 240 145 125 190 125 150 225 240 400 Overloaded Moves . | . . . . . . . . . . . Propulsion Burnouts . | . . . . . . . . . . . Robots Hopped . | . . . . . . . . . . . Cave-ins Triggered . | . . . . . . . . . . . Exploration Rate (%) 47 | 1 67 25 55 16 18 17 97 71 76 80 Regions Visited 10 Branch Regions 4 Pre-discovered Areas . | . . . . . . . . . . . Known Exits Taken 5 | . . . . . 1 1 1 1 1 . Unknown Exits Taken 5 | 1 1 1 1 1 . . . . . . Scrap Searched . | . . . . . . . . . . . Spaces Dug 19 | . . . . . 3 8 . . . 8 Terrain Destroyed 307 | . . . . 2 17 10 5 54 4 215 Melee 17 | . . . . . 3 7 . . . 7 Projectile 64 | . . . . 1 12 2 5 4 4 36 AOE 222 | . . . . . . . . 50 . 172 Terrain Rammed . | . . . . . . . . . . . Walls Destroyed . | . . . . . . . . . . . Machines Disabled . | . . . . . . . . . . . Actions | -11 -10 -9 -8 -7 -6 -5 -5 -5 -5 -5 --------- Run | Jun Mat Mat Mat Fac Fac Fac Ext Cet Arc Hub Total 9193 | 2 481 244 1237 730 1584 1242 1490 519 79 1585 Wait 1475 | . 52 23 349 58 268 373 63 40 5 244 Move 6341 | 2 355 200 705 565 1102 716 1188 377 64 1067 Hop . | . . . . . . . . . . . Pick Up 155 | . 12 3 31 14 20 11 21 13 . 30 Fast Attach 66 | . 4 1 7 2 16 3 4 8 . 21 Attach 66 | . . 2 8 5 12 7 7 4 . 21 Detach 22 | . 2 . 2 . 6 4 1 4 . 3 Swap 172 | . 9 3 21 13 18 30 22 10 4 42 Drop 184 | . 12 2 29 19 27 16 22 21 . 36 Fire 529 | . 34 9 85 38 104 55 49 42 5 108 Melee 26 | . . . . . 3 11 2 . 1 9 Ram 1 | . . 1 . . . . . . . . Kick 3 | . 1 . . . . . . . . 2 Crush 2 | . . . . . . . . . . 2 Escape Stasis 96 | . . . . 16 8 16 56 . . . Rewire 55 | . . . . . . . 55 . . . Trap . | . . . . . . . . . . . Miscellaneous . | . . . . . . . . . . . Route ------- -11/Junkyard -10/Materials (discovered 3 exits: *Mat / [*Min x2]) -9/Materials (discovered 3 exits: *Mat / Min / *Sto) -8/Materials -7/Factory -6/Factory -5/Factory (discovered 4 exits: Upp x2 / *Ext x2) -5/Extension (discovered 3 exits: *Fac x2 / *Cet) -5/Cetus -5/Archives -5/Hub_04(d) (discovered 4 exits: *Fac x4) History --------- Turn | Location | Event 1 | -11/Junkyard | Discovered new exit (range 3) 4 | -11/Junkyard | Entered Materials 229 | -10/Materials | Discovered new exit (range 12) 319 | -10/Materials | Build established: Mutant 513 | -10/Materials | Discovered new exit (range 13) 516 | -10/Materials | Central database locked down 547 | -10/Materials | Discovered new exit (range 16) 610 | -10/Materials | Entered another Materials area 610 | -9/Materials | Accompanied by 1 ally 610 | -9/Materials | Evolved 2 slots: Utility x1, Weapon x1 688 | -9/Materials | Discovered new exit (range 15) 797 | -9/Materials | Identified exit to Mines 797 | -9/Materials | Identified exit to Storage 896 | -9/Materials | Discovered new exit (range 13) 900 | -9/Materials | Build established: Gunner 910 | -9/Materials | Entered another Materials area 910 | -8/Materials | Accompanied by 1 ally 910 | -8/Materials | Evolved 2 slots: Propulsion x1, Utility x1 1036 | -8/Materials | Garrison activated, responded to threat 1105 | -8/Materials | Lost 4 parts (2n2w) 1379 | -8/Materials | Build established: Scavenger-Tank 1444 | -8/Materials | Repaired Seismic Detector 1477 | -8/Materials | Repaired Hvy. Assault Rifle 1770 | -8/Materials | Build established: Tank 2278 | -8/Materials | Discovered new exit (range 5) 2384 | -8/Materials | Central database locked down 2402 | -8/Materials | Entered Factory 2402 | -7/Factory | Evolved 2 slots: Utility x2 2708 | -7/Factory | Build established: Hacker-Tank 2983 | -7/Factory | Garrison activated, responded to threat 3119 | -7/Factory | Discovered new exit (range 15) 3243 | -7/Factory | Entered another Factory area 3243 | -6/Factory | Evolved 2 slots: Utility x2 4250 | -6/Factory | Lost 5 parts (1n2u2w) 4282 | -6/Factory | Destroyed 9 combat bots 4406 | -6/Factory | Discovered new exit (range 10) 4831 | -6/Factory | Build established: Hacker-Gunner 5059 | -6/Factory | Repaired Arm. Huge Wheel 5185 | -6/Factory | Identified exit to Factory 5191 | -6/Factory | Entered another Factory area 5191 | -5/Factory | Evolved 2 slots: Utility x2 5392 | -5/Factory | Fabricated Arm. Wheel (x2) 6227 | -5/Factory | Identified exit to Upper Caves 6227 | -5/Factory | Identified exit to Extension 6500 | -5/Factory | Destroyed 13 combat bots 6611 | -5/Factory | Entered Extension 6898 | -5/Extension | Rescued a captive Derelict 6899 | -5/Extension | Rescued a captive Derelict 7145 | -5/Extension | Rescued a captive Derelict 7147 | -5/Extension | Rescued a captive Derelict 7246 | -5/Extension | Lost 3 parts (1u2w) 7519 | -5/Extension | Build established: Commander-Skirmisher 7608 | -5/Extension | Spotted B-75 Beast 7620 | -5/Extension | Destroyed B-75 Beast 7646 | -5/Extension | Spotted B-75 Beast 7669 | -5/Extension | Allies destroyed B-75 Beast 7745 | -5/Extension | Discovered new exit (range 3) 7745 | -5/Extension | Identified exit to Factory 7842 | -5/Extension | Rescued a captive Derelict 7945 | -5/Extension | Rescued a captive Derelict 7946 | -5/Extension | Rescued a captive Derelict 7964 | -5/Extension | Build established: Scavenger-Gunner 7971 | -5/Extension | Rescued a captive Derelict 7971 | -5/Extension | Rescued a captive Derelict 8162 | -5/Extension | Rescued A7 8366 | -5/Extension | Discovered exit to Factory (range 16) 8366 | -5/Extension | Discovered new exit (range 16) 8397 | -5/Extension | Identified exit to Cetus 8405 | -5/Extension | Entered Cetus 8405 | -5/Cetus | Accompanied by 7 allies (A7) 8410 | -5/Cetus | Acquired a Cetus Manufacturing Module code from A7 8425 | -5/Cetus | Spotted Cetus Guard 8425 | -5/Cetus | Spotted Cetus Guard 8428 | -5/Cetus | Spotted Cetus Guard 8428 | -5/Cetus | Spotted Cetus Guard 8431 | -5/Cetus | Destroyed Cetus Guard 8450 | -5/Cetus | Allies destroyed Cetus Guard 8450 | -5/Cetus | Destroyed Cetus Guard 8460 | -5/Cetus | Destroyed Cetus Guard 8464 | -5/Cetus | Extracted ID and sensor layout for unrecognized location from A7's data core 8700 | -5/Cetus | Started Cetus Manufacturing Module 8725 | -5/Cetus | Manufactured an Enhanced Grunt 8738 | -5/Cetus | Cetus Manufacturing Module disabled 8963 | -5/Cetus | Discovered new exit (range 15) 8988 | -5/Cetus | Identified exit to Archives 9221 | -5/Cetus | Entered Archives 9279 | -5/Archives | Met Zhirov 9285 | -5/Archives | Reinforcements dispatched to Archives 9299 | -5/Archives | Discovered new exit (range 14) 9330 | -5/Archives | Reinforcements dispatched to Archives 9332 | -5/Archives | Zhirov warped through subspace 9350 | -5/Archives | Zhirov detonated Archives 9350 | -5/Archives | Identified exit to Hub_04(d) 9352 | -5/Archives | Entered Hub_04(d) 9382 | -5/Hub_04(d) | Discovered exit to Factory (range 14) 9459 | -5/Hub_04(d) | Garrison activated, responded to threat 9504 | -5/Hub_04(d) | Garrison activated, responded to threat 9671 | -5/Hub_04(d) | Lost 3 parts (2u1w) 9680 | -5/Hub_04(d) | Destroyed 7 combat bots 10149 | -5/Hub_04(d) | Core integrity fell below 50% 10156 | -5/Hub_04(d) | System corruption reached 10% 11100 | -5/Hub_04(d) | Build established: Hacker-Assassin 11316 | -5/Hub_04(d) | Spotted B-75 Beast 11386 | -5/Hub_04(d) | Lost 4 parts (1p2u1w) 11410 | -5/Hub_04(d) | Destroyed B-75 Beast 11608 | -5/Hub_04(d) | Build established: Hacker-Gunner 11648 | -5/Hub_04(d) | Network Hub disabled 11676 | -5/Hub_04(d) | Spotted Lightning 11680 | -5/Hub_04(d) | Spotted Lightning 11686 | -5/Hub_04(d) | Spotted Lightning 11687 | -5/Hub_04(d) | System corruption reached 30% 11694 | -5/Hub_04(d) | Core integrity fell below 20% 11724 | -5/Hub_04(d) | Lost 11 parts (2p3n3u3w) 11731 | -5/Hub_04(d) | Destroyed by Lightning with EMDS Last Messages --------------- 11693_ Mic. Fission Core destroyed. 11695_ EMDS Slug penetrates Wall. 11696_ System corrupted: Heat flow error (+205). 11698_ Penetrated by EMDS Slug. 11702_ Critical hit (Burn: +37). 11702_ EMDS Slug penetrates Wall. 11702_ Penetrated by EMDS Slug. 11706_ EMDS Slug penetrates Wall. 11708_ Penetrated by EMDS Slug. 11708_ Control Node disabled. 11709_ EMDS Slug penetrates Wall. 11714_ System corrupted: Energy discharge (-14). 11714_ Slug penetrates Wall. 11714_ EMDS Slug penetrates Backup Mainframe. 11714_ Backup Mainframe disabled. 11718_ Penetrated by EMDS Slug. 11727_ K-01 Serf destroyed. 11730_ K-01 Serf collects debris. 11731_ Acquired 11 matter. 11731_ Penetrated by EMDS Slug. Map ----- +----------------------------------------------------+ | | | | | | | | | | | | | | | | | | | | | | | | | | | | | | | | | ?????#?################################?????#????# | | ?##???# # #??????????? | | ??????? " " " " " " # " " " " #?#????????? | | ??????# " " " " " " # " " " " ##??#?#????? | | ####### " " " " " # " " " " #??###????? | | "T""" # # ##??#????#?? | | " """ #+#"";################+###################?? | | # k #?? | | " " " + = != < #?? | | " " " # h *@* =kk #?? | | " " " ### #########/#########+#########+######?# | | ### # # # #### | | # # / """ """" / T # """" # | | +####"" # "## """ """" # # """" #"" | | ####"""" "## """" """" # """" # """" #"" | | ! "## """" """" # """" # """" #"T | | "%##"" " # # """" # #"" | | % #" "##"##"#"######## """" # #"" | | = #" / % #?### # ?# | | #" "#"% ############################ | | "" " " # """T "*# | | "" " !%= # """" [!# "" | | """"""""""""" " """ =[%#% """" | | " "" # """" [ | + "" | | " "" # """" # """ | | " "" =# !# | | " """%"""""""""##/##+######+###### | | " %[!=% * *=%%=/= #?#??# | | " " =!!%!!! =/]%] ########+#### | | " """""""""""""""=]][ / ^ ^ ^ | | " "" [|=[ ####]] | | " "" [ ! [ #??#^ "T" """" """" "" | | # "" ! #### ^ """" """" "" | | # ]"" # """" """" "" | +----------------------------------------------------+ Best States ------------- Heat Dissipation 67 Energy Generation 25 Energy Capacity 850 Matter Stores 300 Matter Capacity 300 Sight Range 18 Robot Scan Range 16 Terrain Scan Range 20 Terrain Scan Density 10 Armor Coverage 900 Resistance: KI 30 Resistance: TH 15 Propulsion Shielding 33 Weapon Cycling 20 Evasion (%) 55 Targeting Accuracy 18 Target Analysis 6 Recoil Reduction 3 Offensive Hacking 38 Defensive Hacking 14 Item Schematics ----------------- Hcp. Storage Unit | -8/Materials | Scanalyzed Adv. Targeting Computer | -7/Factory | Scanalyzed Imp. Hacking Suite | -6/Factory | Hacked Cmb. Airjet | -6/Factory | Hacked Arm. Wheel | -6/Factory | Hacked Robot Schematics ------------------ None Fabricated ------------ Arm. Wheel | x2 | -5/Factory Alien Tech Used ----------------- None Achievements -------------- None Challenges ------------ None Game ------ Seed FlyingFusionProcessor Manual? 0 Play Time 02:24:59 Cumulative 138.3 hours Start 2023.10.26 @ 13:19:52 End 2023.10.26 @ 15:55:39 Sessions 1 Manual Loads 0 Difficulty Rogue Special Mode None Game No. 76 Rogue 76 Adventurer 0 Explorer 0 Win Type - Total 0 Types 0/0/0/0/0/0/0/0/0 Lore% 31 Gallery% 60 Achievement% 47 Wizard Run 0 Options --------- ASCII 0 Keyboard 1 Movement Numpad Keybinds 0 Fullscreen 1 Font 24/Smallcaps Map View 76x50 Tactical HUD 1 Map Filters NONE Filters NONE Steam 1 RUN: 2501d0d8-3d9d-4645-a6fe-689ba0e54e9d